bitfinex/quotes_BTCUSD_20241208
["timestamp","ask_amount","ask_price","bid_price","bid_amount"]
[1733683992487,0.15851344,99851.0,99850.0,0.33448267]
[1733683992710,0.15851344,99851.0,99850.0,0.2444987]
[1733683993091,0.15851344,99851.0,99850.0,0.33447997]
[1733683993513,0.15851344,99851.0,99850.0,0.2444987]
[1733683993862,0.15851344,99851.0,99850.0,0.33447921]
[1733683994830,0.15851344,99851.0,99850.0,0.2444987]
[1733683996912,0.15851344,99851.0,99850.0,0.14424177]
[1733683997117,0.15851344,99851.0,99850.0,0.0068657]
[1733683997527,0.15851344,99851.0,99850.0,0.1871357]
[1733683997729,0.15851344,99851.0,99850.0,0.27711177]
[1733683997940,0.15851344,99851.0,99850.0,0.1871357]
[1733683998386,0.15851344,99851.0,99850.0,0.27511177]
[1733683998617,0.15851344,99851.0,99850.0,0.1851357]
[1733683998804,0.15851344,99851.0,99850.0,0.27211177]
[1733683999039,0.15851344,99851.0,99850.0,0.27211158]
[1733683999372,0.15851344,99851.0,99850.0,0.1821357]
[1733683999575,0.15851344,99851.0,99850.0,0.1861357]
[1733684000209,0.15851344,99851.0,99850.0,0.1851357]
[1733684000406,0.15851344,99851.0,99850.0,0.1871357]
[1733684004070,0.15851344,99851.0,99850.0,0.27711158]
[1733684004293,0.15851344,99851.0,99850.0,0.1871357]
[1733684010577,0.15851344,99851.0,99850.0,0.28716521]
[1733684013044,0.12580257,99889.0,99855.0,0.05]
[1733684013252,0.12580257,99889.0,99859.0,0.180254]
[1733684013253,5.738e-05,99877.0,99859.0,0.180254]
[1733684013671,0.180223,99876.0,99859.0,0.180254]
[1733684015401,0.360447,99876.0,99859.0,0.180254]
[1733684015609,0.367447,99876.0,99859.0,0.181254]
[1733684016230,0.0759,99875.0,99859.0,0.181254]
[1733684016661,0.0759,99875.0,99859.0,0.361508]
[1733684017961,0.0759,99875.0,99862.0,0.180247]
[1733684018638,0.0819,99875.0,99862.0,0.180247]
[1733684018840,0.0759,99875.0,99862.0,0.180247]
[1733684019261,0.0819,99875.0,99862.0,0.181247]
[1733684020008,0.180227,99874.0,99862.0,0.181247]
[1733684020810,0.180227,99874.0,99862.0,0.001]
[1733684021200,0.180235,99870.0,99862.0,0.001]
[1733684021407,0.180235,99870.0,99857.0,0.180257]
[1733684022654,0.184235,99870.0,99857.0,0.180257]
[1733684023087,0.180235,99870.0,99857.0,0.180257]
[1733684023281,0.183235,99870.0,99857.0,0.180257]
[1733684025328,0.183235,99870.0,99857.0,0.27029863]
[1733684027218,0.180236,99869.0,99857.0,0.09004163]
[1733684028447,0.183236,99869.0,99857.0,0.09004163]
[1733684029206,0.183236,99869.0,99858.0,0.09004163]
[1733684030178,0.183236,99869.0,99859.0,0.09004163]
[1733684030694,0.180236,99869.0,99859.0,0.09004163]
[1733684030903,0.183236,99869.0,99859.0,0.09004163]
[1733684031141,0.180236,99869.0,99859.0,0.09004163]
[1733684031580,0.183236,99869.0,99859.0,0.09004163]
[1733684032056,0.183236,99869.0,99860.0,0.09004163]
[1733684032291,0.180243,99865.0,99860.0,0.09004163]
[1733684033168,0.180243,99865.0,99860.0,0.09013433]
[1733684033777,0.180243,99865.0,99861.0,0.09013433]
[1733684033978,0.181243,99865.0,99861.0,0.09013433]
[1733684034179,0.181243,99865.0,99860.0,0.09013433]
[1733684034792,0.180243,99865.0,99860.0,0.09013433]
[1733684034997,0.181243,99865.0,99860.0,0.09013433]
[1733684035399,0.180243,99865.0,99859.0,0.09013433]
[1733684037212,0.181243,99865.0,99859.0,0.09013433]
[1733684037390,0.180243,99865.0,99859.0,0.09013433]
[1733684037716,0.181243,99865.0,99859.0,0.09013433]
[1733684038026,0.181243,99865.0,99859.0,0.09013544]
[1733684038590,0.181243,99865.0,99858.0,0.09013544]
[1733684038790,0.181243,99865.0,99859.0,0.09013544]
[1733684039647,0.181243,99865.0,99859.0,0.09013706]
[1733684040113,0.180243,99865.0,99859.0,0.09013706]
[1733684040307,0.181243,99865.0,99859.0,0.09013706]
[1733684040850,0.180243,99865.0,99859.0,0.09013706]
[1733684041056,0.181243,99865.0,99859.0,0.09013706]
[1733684044674,0.181243,99865.0,99858.0,0.09013706]
[1733684045264,0.181243,99865.0,99859.0,0.09013706]
[1733684046460,0.181243,99865.0,99857.0,0.09013706]
[1733684046656,0.180243,99865.0,99857.0,0.09013706]
[1733684046894,0.181243,99865.0,99857.0,0.09013706]
[1733684047094,0.181243,99865.0,99858.0,0.09013706]
[1733684047302,0.180243,99865.0,99859.0,0.09013706]
[1733684048119,0.181243,99865.0,99859.0,0.09013706]
[1733684048371,0.180243,99865.0,99859.0,0.09013706]
[1733684048569,0.181243,99865.0,99859.0,0.09013706]
[1733684052621,0.181243,99865.0,99860.0,0.09013706]
[1733684053462,0.180243,99865.0,99859.0,0.09013706]
[1733684053664,0.180243,99865.0,99860.0,0.09013706]
[1733684053665,0.181243,99865.0,99860.0,0.09013706]
[1733684054283,0.181243,99865.0,99859.0,0.09013706]
[1733684054497,0.181243,99865.0,99860.0,0.09013706]
[1733684054841,0.181243,99865.0,99859.0,0.09013706]
[1733684055046,0.181243,99865.0,99860.0,0.09013706]
[1733684055726,0.181243,99865.0,99859.0,0.09013706]
[1733684056015,0.181243,99865.0,99860.0,0.09013706]
[1733684056415,0.181243,99865.0,99859.0,0.09013706]
[1733684057061,0.001,99865.0,99859.0,0.09013706]
[1733684057265,0.001,99865.0,99860.0,0.09013706]
[1733684057478,0.180236,99869.0,99861.0,0.09013706]
[1733684057912,0.001,99865.0,99864.0,0.1331]
[1733684058096,0.001,99865.0,99864.0,0.13410123]
[1733684058316,0.001,99865.0,99864.0,0.50627339]
[1733684058522,5.738e-05,99877.0,99876.0,0.1331]
[1733684061518,5.738e-05,99877.0,99876.0,0.1341]
[1733684061936,5.738e-05,99877.0,99876.0,0.1331]
[1733684062157,5.738e-05,99877.0,99876.0,0.1341]
[1733684066101,5.738e-05,99877.0,99876.0,0.314323]
[1733684071272,5.738e-05,99877.0,99876.0,0.1341]
[1733684073031,5.738e-05,99877.0,99876.0,0.051]
[1733684081986,5.738e-05,99877.0,99876.0,0.05010716]
[1733684082417,5.738e-05,99877.0,99876.0,0.04910716]
[1733684082549,5.738e-05,99877.0,99876.0,0.05010716]
[1733684082756,5.738e-05,99877.0,99876.0,0.05110716]
[1733684083185,5.738e-05,99877.0,99876.0,0.04910716]
[1733684083389,5.738e-05,99877.0,99876.0,0.05110716]
[1733684083708,5.738e-05,99877.0,99876.0,0.05310716]
[1733684097303,5.738e-05,99877.0,99876.0,0.0606125]
[1733684100551,5.738e-05,99877.0,99876.0,0.43254317]
[1733684100788,5.738e-05,99877.0,99876.0,1.01169675]
[1733684100985,5.738e-05,99877.0,99876.0,0.78673899]
[1733684101185,5.738e-05,99877.0,99876.0,0.83673899]
[1733684102511,5.738e-05,99877.0,99876.0,0.83676144]
[1733684103674,5.738e-05,99877.0,99876.0,0.83675399]
[1733684106257,5.738e-05,99877.0,99876.0,0.8292561]
[1733684106457,5.738e-05,99877.0,99876.0,0.83675309]
[1733684107426,5.738e-05,99877.0,99876.0,0.8365685]
[1733684111109,5.738e-05,99877.0,99876.0,0.7635685]
[1733684111345,5.738e-05,99877.0,99876.0,0.34549194]
[1733684111623,5.738e-05,99877.0,99876.0,0.06060309]
[1733684114619,5.738e-05,99877.0,99876.0,0.05860309]
[1733684114820,5.738e-05,99877.0,99876.0,0.05960309]
[1733684115008,5.738e-05,99877.0,99876.0,0.05960412]
[1733684115183,5.738e-05,99877.0,99876.0,0.05860412]
[1733684115385,5.738e-05,99877.0,99876.0,0.05660412]
[1733684115590,5.738e-05,99877.0,99876.0,0.05760412]
[1733684116527,5.738e-05,99877.0,99876.0,0.05860412]
[1733684117742,5.738e-05,99877.0,99876.0,0.00949696]
[1733684117993,5.738e-05,99877.0,99876.0,0.002]
[1733684117994,0.07525738,99877.0,99876.0,0.002]
[1733684118527,0.07525738,99877.0,99876.0,0.001]
[1733684119562,0.07525738,99877.0,99870.0,0.0008652]
[1733684119766,0.180232,99871.0,99870.0,0.0008652]
[1733684120436,0.40426151,99871.0,99870.0,0.0008652]
[1733684121064,0.41238424,99871.0,99870.0,0.0008652]
[1733684121269,0.46238424,99871.0,99870.0,0.0008652]
[1733684121861,0.46214715,99871.0,99870.0,0.0028652]
[1733684122056,0.46214715,99871.0,99870.0,0.0008652]
[1733684122417,0.46914715,99871.0,99870.0,0.0018652]
[1733684122619,0.46214715,99871.0,99870.0,0.0008652]
[1733684123029,0.46914715,99871.0,99870.0,0.0018652]
[1733684125145,0.76953715,99871.0,99870.0,0.0018652]
[1733684126484,0.91953715,99871.0,99870.0,0.0018652]
[1733684127277,0.71141442,99871.0,99870.0,0.0018652]
[1733684127477,0.61138491,99871.0,99870.0,0.0018652]
[1733684127676,0.48738491,99871.0,99870.0,0.0018652]
[1733684133329,0.30739,99871.0,99870.0,0.0018652]
[1733684137724,0.30039,99871.0,99870.0,0.0008652]
[1733684138122,0.30739,99871.0,99870.0,0.0018652]
[1733684138552,0.31339,99871.0,99870.0,0.0028652]
[1733684138980,0.30039,99871.0,99870.0,0.0008652]
[1733684139183,0.30139,99871.0,99870.0,0.0008652]
[1733684153170,0.30139,99871.0,99870.0,0.1810992]
[1733684153378,0.30139,99871.0,99870.0,0.31110636]
[1733684153952,0.30039,99871.0,99870.0,0.31110636]
[1733684155310,0.30039,99871.0,99870.0,0.31410636]
[1733684155613,0.30139,99871.0,99870.0,0.31410636]
[1733684155811,0.30039,99871.0,99870.0,0.31410636]
[1733684155987,0.30039,99871.0,99870.0,0.31910636]
[1733684156360,0.30039,99871.0,99870.0,0.31410636]
[1733684156563,0.30039,99871.0,99870.0,0.31910636]
[1733684156844,0.30039,99871.0,99870.0,0.31610636]
[1733684157336,0.30039,99871.0,99870.0,0.31910636]
[1733684167665,0.30039,99871.0,99870.0,0.0088652]
[1733684167869,0.30039,99871.0,99870.0,0.05797236]
[1733684168300,0.30039,99871.0,99870.0,0.05497236]
[1733684168748,0.30039,99871.0,99870.0,0.05197236]
[1733684169126,0.30039,99871.0,99870.0,0.05397236]
[1733684169334,0.30039,99871.0,99870.0,0.05197236]
[1733684169896,0.30039,99871.0,99870.0,0.04997236]
[1733684170083,0.30039,99871.0,99870.0,0.05097236]
[1733684171319,0.480622,99871.0,99870.0,0.0018652]
[1733684171519,0.557322,99871.0,99870.0,0.0018652]
[1733684172668,0.557322,99871.0,99870.0,0.0008652]
[1733684173237,0.559322,99871.0,99870.0,0.0008652]
[1733684174687,0.606622,99871.0,99870.0,0.0008652]
[1733684177963,0.71503227,99871.0,99870.0,0.0008652]
[1733684178165,0.72023759,99871.0,99870.0,0.0008652]
[1733684178574,0.87005293,99871.0,99870.0,0.0008652]
[1733684178781,1.00977942,99871.0,99870.0,0.0008652]
[1733684179011,1.05460726,99871.0,99870.0,0.0008652]
[1733684179272,0.92023759,99871.0,99870.0,0.0008652]
[1733684179499,1.21778504,99871.0,99870.0,0.0008652]
[1733684179705,1.0524957,99871.0,99870.0,0.0008652]
[1733684179914,1.05249512,99871.0,99870.0,0.0008652]
[1733684180135,1.05849518,99871.0,99870.0,0.0018652]
[1733684180340,0.92423759,99871.0,99870.0,0.0018652]
[1733684180751,0.92423759,99871.0,99870.0,2e-07]
[1733684181574,1.01371057,99871.0,99870.0,2e-07]
[1733684182011,1.01371057,99871.0,99870.0,0.0008658]
[1733684182720,0.92423759,99871.0,99870.0,8e-07]
[1733684182923,1.04794577,99871.0,99870.0,8e-07]
[1733684183985,1.13735462,99871.0,99870.0,8e-07]
[1733684184620,1.04194577,99871.0,99870.0,8e-07]
[1733684185464,0.95113043,99871.0,99870.0,8e-07]
[1733684185643,0.95313043,99871.0,99870.0,8e-07]
[1733684185779,0.259768,99851.0,99850.0,0.0008657]
[1733684185982,0.66018751,99851.0,99850.0,0.0008657]
[1733684187058,0.66218751,99851.0,99850.0,0.0008657]
[1733684187957,0.66918751,99851.0,99850.0,0.0018657]
[1733684192486,0.67768969,99851.0,99850.0,0.0018657]
[1733684195119,0.58968751,99851.0,99850.0,0.0018657]
[1733684198331,0.59489273,99851.0,99850.0,0.0018657]
[1733684200911,0.67439273,99851.0,99850.0,0.0018657]
[1733684213355,0.59489273,99851.0,99850.0,0.0018657]
[1733684228746,0.49486322,99851.0,99850.0,0.0807657]
[1733684229004,0.31459522,99851.0,99850.0,0.0807657]
[1733684229526,0.31459522,99851.0,99850.0,0.12987286]
[1733684229729,0.30939,99851.0,99850.0,0.12987286]
[1733684230171,0.30739,99851.0,99850.0,0.12987286]
[1733684230372,0.30839,99851.0,99850.0,0.12987286]
[1733684230801,0.30739,99851.0,99850.0,0.12987286]
[1733684231005,0.30039,99851.0,99850.0,0.12887286]
[1733684231211,0.30239,99851.0,99850.0,0.12887286]
[1733684231616,0.30039,99851.0,99850.0,0.12887286]
[1733684231946,0.30139,99851.0,99850.0,0.12887286]
[1733684240715,0.30139,99851.0,99850.0,0.13636564]
[1733684242620,0.30139,99851.0,99850.0,0.12887286]
[1733684258776,0.30139,99851.0,99850.0,0.0008657]
[1733684260001,0.40141951,99851.0,99850.0,0.0008657]
[1733684260233,0.40664238,99851.0,99850.0,0.0008657]
[1733684262402,0.40564238,99851.0,99850.0,0.0008657]
[1733684262666,0.41164238,99851.0,99850.0,0.0008657]
[1733684262896,0.40664238,99851.0,99850.0,0.0008657]
[1733684263118,0.41550359,99851.0,99850.0,0.0008657]
[1733684263822,0.41450359,99851.0,99850.0,0.0008657]
[1733684264323,0.42350359,99851.0,99850.0,0.0018657]
[1733684264566,0.41650359,99851.0,99850.0,0.0008657]
[1733684264808,0.42550359,99851.0,99850.0,0.0018657]
[1733684268895,0.50540359,99851.0,99850.0,0.0018657]
[1733684292887,0.41664238,99851.0,99850.0,0.0018657]
[1733684293110,0.31661287,99851.0,99850.0,0.0816657]
[1733684295133,0.31661287,99851.0,99850.0,0.0806657]
[1733684295134,0.30561287,99851.0,99850.0,0.0806657]
[1733684295336,0.30761287,99851.0,99850.0,0.0806657]
[1733684295779,0.30561287,99851.0,99850.0,0.0806657]
[1733684296235,0.30761287,99851.0,99850.0,0.0806657]
[1733684296451,0.31561287,99851.0,99850.0,0.0816657]
[1733684296654,0.30761287,99851.0,99850.0,0.0806657]
[1733684297105,0.31361287,99851.0,99850.0,0.0816657]
[1733684313309,0.31361287,99851.0,99850.0,0.0018657]
[1733684313521,0.41364238,99851.0,99850.0,0.0018657]
[1733684314175,0.50329279,99851.0,99850.0,0.0018657]
[1733684315227,0.41364238,99851.0,99850.0,0.0018657]
[1733684315432,0.50329279,99851.0,99850.0,0.0018657]
[1733684317099,0.41364238,99851.0,99850.0,0.0018657]
[1733684317519,0.50329279,99851.0,99850.0,0.0018657]
[1733684318185,0.50327152,99851.0,99850.0,0.0018657]
[1733684321819,0.41364238,99851.0,99850.0,0.0018657]
[1733684326529,0.31361287,99851.0,99850.0,0.0018657]
[1733684326730,0.31361287,99851.0,99850.0,0.1345657]
[1733684326901,0.30839,99851.0,99850.0,0.18367286]
[1733684327706,0.30239,99851.0,99850.0,0.18267286]
[1733684328320,0.30039,99851.0,99850.0,0.18267286]
[1733684328727,0.30239,99851.0,99850.0,0.18267286]
[1733684329130,0.30039,99851.0,99850.0,0.18367286]
[1733684329407,0.30039,99851.0,99850.0,0.18467286]
[1733684335411,0.30039,99851.0,99850.0,0.0028657]
[1733684336088,0.40563512,99851.0,99850.0,0.00131169]
[1733684336303,0.4146884,99851.0,99850.0,0.00102269]
[1733684336560,0.64447758,99851.0,99850.0,0.001]
[1733684336787,0.5646884,99851.0,99840.0,0.0008656]
[1733684337013,0.180286,99841.0,99840.0,0.0008656]
[1733684337233,0.28031551,99841.0,99840.0,0.0008656]
[1733684337453,0.58070551,99841.0,99840.0,0.0008656]
[1733684337881,0.59006829,99841.0,99840.0,0.0008656]
[1733684338176,0.59006829,99841.0,99831.0,0.05010096]
[1733684338177,0.180302,99832.0,99831.0,0.05010096]
[1733684338409,0.51083828,99832.0,99831.0,0.05010096]
[1733684338620,0.51083828,99832.0,99831.0,0.04910716]
[1733684338833,0.51083828,99832.0,99830.0,0.0008656]
[1733684339067,0.180302,99832.0,99831.0,0.04910716]
[1733684339313,0.480692,99832.0,99831.0,0.04910716]
[1733684339524,0.482692,99832.0,99831.0,0.04910716]
[1733684339743,0.491692,99832.0,99831.0,0.05010716]
[1733684339962,1.00127247,99832.0,99831.0,0.05010716]
[1733684340183,0.99227247,99832.0,99831.0,0.04910716]
[1733684340440,0.490692,99832.0,99831.0,0.05010716]
[1733684340646,0.81918802,99832.0,99831.0,0.05010716]
[1733684340857,0.99824694,99832.0,99831.0,0.05010716]
[1733684341071,0.81918577,99832.0,99831.0,0.05010716]
[1733684341287,0.81914731,99832.0,99831.0,0.05010716]
[1733684341954,0.490692,99832.0,99831.0,0.05010716]
[1733684342165,1.00020509,99832.0,99831.0,0.05010716]
[1733684342378,0.82114392,99832.0,99831.0,0.05010716]
[1733684342808,0.490692,99832.0,99831.0,0.05010716]
[1733684343229,0.62496105,99832.0,99831.0,0.05010716]
[1733684343441,0.58019362,99832.0,99831.0,0.05010716]
[1733684343654,0.62496105,99832.0,99831.0,0.05010716]
[1733684344141,0.490692,99832.0,99831.0,0.05010716]
[1733684344783,0.62492804,99832.0,99831.0,0.05010716]
[1733684345197,0.490692,99832.0,99831.0,0.05010716]
[1733684345874,0.62492804,99832.0,99831.0,0.05010716]
[1733684346094,0.490692,99832.0,99831.0,0.05010716]
[1733684346336,0.58017092,99832.0,99831.0,0.05010716]
[1733684346560,0.58016919,99832.0,99831.0,0.05010716]
[1733684346751,0.490692,99832.0,99831.0,0.05010716]
[1733684350509,0.490692,99832.0,99831.0,0.001]
[1733684354140,0.59072151,99832.0,99831.0,0.001]
[1733684354387,0.15,99831.0,99830.0,6e-07]
[1733684354591,0.540918,99830.0,99820.0,0.0008655]
[1733684354800,0.180322,99821.0,99820.0,0.0008655]
[1733684355011,0.28035151,99821.0,99820.0,0.0008655]
[1733684355247,0.58074151,99821.0,99820.0,0.0008655]
[1733684356015,0.58374151,99821.0,99820.0,0.0008655]
[1733684356232,0.6731742,99821.0,99820.0,0.0008655]
[1733684356438,0.73374151,99821.0,99820.0,0.0008655]
[1733684356654,1.06394346,99821.0,99820.0,0.0008655]
[1733684356860,1.29288131,99821.0,99820.0,0.0008655]
[1733684357105,1.06715549,99821.0,99820.0,0.0008655]
[1733684357542,1.06715549,99821.0,99820.0,0.0018655]
[1733684357543,1.07615549,99821.0,99820.0,0.0018655]
[1733684358195,1.29969024,99821.0,99820.0,0.0018655]
[1733684358402,1.30769,99821.0,99820.0,0.0018655]
[1733684358823,1.31169,99821.0,99820.0,0.0018655]
[1733684359040,1.3115723,99821.0,99820.0,0.0018655]
[1733684359251,1.08802898,99821.0,99820.0,0.0018655]
[1733684360109,1.26677929,99821.0,99820.0,0.0018655]
[1733684360322,0.18034,99811.0,99810.0,1e-07]
[1733684360569,0.28036951,99811.0,99810.0,1e-07]
[1733684360803,0.45053826,99811.0,99810.0,1e-07]
[1733684361015,0.450535,99811.0,99810.0,1e-07]
[1733684361237,0.36116951,99811.0,99810.0,1e-07]
[1733684361670,0.36116951,99811.0,99810.0,5e-07]
[1733684361881,0.623535,99811.0,99810.0,5e-07]
[1733684362100,0.84155951,99811.0,99810.0,5e-07]
[1733684362312,0.84355951,99811.0,99810.0,5e-07]
[1733684362745,0.66321951,99811.0,99784.0,0.0766833]
[1733684362968,0.180358,99801.0,99800.0,0.00098018]
[1733684363193,0.58077751,99801.0,99800.0,0.00098018]
[1733684364352,0.80747751,99801.0,99800.0,0.00098018]
[1733684364986,0.81547751,99801.0,99800.0,0.00098018]
[1733684365194,0.81747751,99801.0,99800.0,0.00098018]
[1733684369434,0.15,99800.0,99784.0,0.0009833]
[1733684369667,0.180387,99785.0,99784.0,0.00104074]
[1733684369924,0.480777,99785.0,99784.0,0.00104074]
[1733684370141,0.480777,99785.0,99784.0,5.744e-05]
[1733684372377,0.485777,99785.0,99784.0,5.744e-05]
[1733684373167,0.486777,99785.0,99784.0,5.744e-05]
[1733684373756,0.18039,99784.0,99781.0,0.0489844]
[1733684374003,0.48078,99784.0,99781.0,0.04904185]
[1733684374435,0.66117,99784.0,99781.0,0.04904185]
[1733684374695,0.66117,99784.0,99781.0,5.745e-05]
[1733684374951,0.66217,99784.0,99781.0,5.745e-05]
[1733684375427,0.66717,99784.0,99781.0,5.745e-05]
[1733684376459,0.180393,99782.0,99781.0,5.745e-05]
[1733684376692,0.180393,99782.0,99770.0,0.00041611]
[1733684376693,0.180413,99771.0,99770.0,0.00041611]
[1733684376912,0.180413,99771.0,99770.0,0.00047329]
[1733684376913,0.480803,99771.0,99770.0,0.00047329]
[1733684378858,0.483803,99771.0,99770.0,0.00047329]
[1733684383641,0.486803,99771.0,99770.0,0.00047329]
[1733684384218,0.480803,99771.0,99770.0,0.00047329]
[1733684384422,0.492803,99771.0,99770.0,0.00047329]
[1733684384633,0.483803,99771.0,99770.0,0.00047329]
[1733684385272,0.492803,99771.0,99770.0,0.00047329]
[1733684403402,0.5822034,99771.0,99770.0,0.00047329]
[1733684405335,0.492803,99771.0,99770.0,0.00047329]
[1733684407218,0.6269036,99771.0,99770.0,0.00047329]
[1733684407690,0.492803,99771.0,99770.0,0.00047329]
[1733684408549,0.489803,99771.0,99770.0,0.00047329]
[1733684408782,0.492803,99771.0,99770.0,0.00047329]
[1733684409180,0.6239036,99771.0,99770.0,0.00047329]
[1733684409589,0.6269036,99771.0,99770.0,0.00047329]
[1733684410152,0.492803,99771.0,99770.0,0.00047329]
[1733684410368,0.62716395,99771.0,99770.0,0.00047329]
[1733684410586,0.492803,99771.0,99770.0,0.00047329]
[1733684410786,0.627164,99771.0,99770.0,0.00047329]
[1733684411223,0.492803,99771.0,99770.0,0.00047329]
[1733684411421,0.627164,99771.0,99770.0,0.00047329]
[1733684412273,0.492803,99771.0,99770.0,0.00047329]
[1733684412497,0.62718759,99771.0,99770.0,0.00047329]
[1733684412923,0.492803,99771.0,99770.0,0.00047329]
[1733684413096,0.62718999,99771.0,99770.0,0.00047329]
[1733684413270,0.62720469,99771.0,99770.0,0.00047329]
[1733684413480,0.82355494,99771.0,99770.0,0.00047329]
[1733684413727,0.82355538,99771.0,99770.0,0.00047329]
[1733684414180,0.492803,99771.0,99770.0,0.00047329]
[1733684415148,0.82363871,99771.0,99770.0,0.00047329]
[1733684415516,1.00286016,99771.0,99770.0,0.00047329]
[1733684415722,0.82363871,99771.0,99770.0,0.00047329]
[1733684416124,1.00286016,99771.0,99770.0,0.00047329]
[1733684417196,0.82363871,99771.0,99770.0,0.00047329]
[1733684417394,1.00294332,99771.0,99770.0,0.00047329]
[1733684417595,0.82363871,99771.0,99770.0,0.00047329]
[1733684419233,1.0480704,99771.0,99770.0,0.00047329]
[1733684420002,0.82086148,99771.0,99770.0,0.00047329]
[1733684420443,0.82286148,99771.0,99770.0,0.00047329]
[1733684423802,0.82321592,99771.0,99770.0,0.00047329]
[1733684428576,0.82323273,99771.0,99770.0,0.00047329]
[1733684432052,0.92326224,99771.0,99770.0,0.00047329]
[1733684432282,0.92326224,99771.0,99760.0,0.0008653]
[1733684432283,0.180431,99761.0,99760.0,0.0008653]
[1733684432495,0.180431,99761.0,99760.0,3e-07]
[1733684432496,1.14148024,99761.0,99760.0,3e-07]
[1733684432711,1.19148024,99761.0,99760.0,3e-07]
[1733684432930,0.90776611,99761.0,99760.0,3e-07]
[1733684433186,1.23890134,99761.0,99760.0,3e-07]
[1733684433596,1.24190134,99761.0,99760.0,3e-07]
[1733684434016,1.23890134,99761.0,99760.0,3e-07]
[1733684434255,0.409649,99751.0,99750.0,7e-07]
[1733684434488,1.14120374,99751.0,99750.0,7e-07]
[1733684436365,1.14420374,99751.0,99750.0,7e-07]
[1733684438450,1.1536153,99751.0,99750.0,7e-07]
[1733684441480,1.37710201,99751.0,99750.0,7e-07]
[1733684441928,1.37710122,99751.0,99750.0,7e-07]
[1733684442137,1.37593666,99751.0,99750.0,7e-07]
[1733684443195,1.15245892,99751.0,99750.0,7e-07]
[1733684445096,1.33115557,99751.0,99750.0,7e-07]
[1733684445300,1.33113818,99751.0,99750.0,7e-07]
[1733684445499,1.15245892,99751.0,99750.0,7e-07]
[1733684446410,1.33112122,99751.0,99750.0,7e-07]
[1733684446809,1.33112152,99751.0,99750.0,7e-07]
[1733684447201,1.33112152,99751.0,99730.0,0.0008656]
[1733684447401,0.180467,99741.0,99730.0,0.0008656]
[1733684447625,0.58088651,99741.0,99730.0,0.0008656]
[1733684447824,0.58088651,99741.0,99729.0,0.0009959]
[1733684447982,0.180487,99730.0,99727.0,0.0467115]
[1733684448194,0.480877,99730.0,99727.0,0.0467115]
[1733684448642,0.661364,99730.0,99727.0,0.0472836]
[1733684449406,0.661364,99730.0,99727.0,0.0482836]
[1733684450870,0.661364,99730.0,99727.0,0.0472836]
[1733684451287,0.662364,99730.0,99727.0,0.0005721]
[1733684451688,0.657364,99730.0,99727.0,0.0005721]
[1733684452837,0.66257332,99730.0,99727.0,0.0005721]
[1733684453254,0.18049,99728.0,99727.0,0.0005721]
[1733684453461,0.28051951,99728.0,99727.0,0.0005721]
[1733684454334,0.43051951,99728.0,99727.0,1e-07]
[1733684454983,0.44051951,99728.0,99727.0,1e-07]
[1733684455397,0.44451951,99728.0,99727.0,1e-07]
[1733684455531,0.45351951,99728.0,99727.0,1e-07]
[1733684455756,0.44051951,99728.0,99727.0,1e-07]
[1733684455957,0.44951951,99728.0,99727.0,1e-07]
[1733684456159,0.49951951,99728.0,99727.0,1e-07]
[1733684457057,0.50351951,99728.0,99727.0,1e-07]
[1733684460030,0.80390951,99728.0,99727.0,1e-07]
[1733684460904,0.05,99727.0,99720.0,6e-07]
[1733684461098,0.180503,99721.0,99720.0,0.00017314]
[1733684461302,0.28053251,99721.0,99720.0,1.4e-07]
[1733684462205,0.58092251,99721.0,99720.0,1.4e-07]
[1733684463283,0.58892251,99721.0,99720.0,0.04920014]
[1733684463699,0.59192251,99721.0,99720.0,0.04920014]
[1733684464105,0.58892251,99721.0,99720.0,0.04920014]
[1733684464519,0.59192251,99721.0,99720.0,0.04920014]
[1733684464959,0.58392251,99721.0,99720.0,0.04920014]
[1733684465166,0.58992251,99721.0,99720.0,0.04920014]
[1733684465376,0.58092251,99721.0,99720.0,0.04920014]
[1733684465789,0.58892251,99721.0,99720.0,1.4e-07]
[1733684466711,0.59192251,99721.0,99720.0,1.4e-07]
[1733684467201,0.58892251,99721.0,99720.0,1.4e-07]
[1733684467425,0.59192251,99721.0,99720.0,1.4e-07]
[1733684467656,0.69173785,99721.0,99720.0,1.4e-07]
[1733684467880,0.68373785,99721.0,99720.0,1.4e-07]
[1733684468114,0.58092251,99721.0,99720.0,1.4e-07]
[1733684468386,0.180523,99710.0,99709.0,0.0794]
[1733684468621,0.28055251,99710.0,99709.0,0.00012629]
[1733684469798,0.28755251,99710.0,99709.0,0.00012629]
[1733684471265,0.28855251,99710.0,99709.0,0.00012629]
[1733684471469,0.28155251,99710.0,99709.0,0.00012629]
[1733684471682,0.28055251,99710.0,99709.0,0.00012629]
[1733684471891,0.28955251,99710.0,99709.0,0.00012629]
[1733684472101,0.28455251,99710.0,99709.0,0.00012629]
[1733684472505,0.29355251,99710.0,99709.0,0.00012629]
[1733684473144,0.29874378,99710.0,99709.0,0.00012629]
[1733684473581,0.30801747,99710.0,99709.0,0.00012629]
[1733684476315,0.36801747,99710.0,99709.0,0.00012629]
[1733684476546,0.51801747,99710.0,99709.0,0.00012629]
[1733684477255,0.6071762,99710.0,99709.0,0.00012629]
[1733684477565,0.65172396,99710.0,99709.0,0.00012629]
[1733684477905,0.51801747,99710.0,99709.0,0.00012629]
[1733684478742,0.45801747,99710.0,99709.0,0.00012629]
[1733684478995,0.54721254,99710.0,99709.0,0.00012629]
[1733684479247,0.54721244,99710.0,99709.0,0.00012629]
[1733684480473,0.45801747,99710.0,99709.0,0.00012629]
[1733684481704,0.57721474,99710.0,99709.0,0.00012629]
[1733684482204,0.33801747,99710.0,99709.0,0.12662629]
[1733684482453,0.22871427,99710.0,99709.0,0.12662629]
[1733684482694,0.19871427,99710.0,99709.0,0.12662629]
[1733684482929,0.19471427,99710.0,99709.0,0.12662629]
[1733684483159,0.18571427,99710.0,99709.0,0.12662629]
[1733684483454,0.18871427,99710.0,99709.0,0.12662629]
[1733684483705,0.19671427,99710.0,99709.0,0.12662629]
[1733684483951,0.19371427,99710.0,99709.0,0.17333779]
[1733684484914,0.18571427,99710.0,99709.0,0.17333779]
[1733684485212,0.19571427,99710.0,99709.0,0.17333779]
[1733684485458,0.18871427,99710.0,99709.0,0.17333779]
[1733684485949,0.00819127,99710.0,99709.0,0.17333779]
[1733684486226,0.003,99710.0,99709.0,0.19633779]
[1733684486759,0.003,99710.0,99709.0,0.20384706]
[1733684487904,0.0017308,99720.0,99719.0,0.0467115]
[1733684488137,0.0017308,99720.0,99719.0,0.20382077]
[1733684488813,0.0017308,99720.0,99719.0,0.1963115]
[1733684489276,0.0017308,99720.0,99719.0,0.1983115]
[1733684489904,0.0017308,99720.0,99719.0,0.20380973]
[1733684490153,0.0017308,99720.0,99719.0,0.1963115]
[1733684490360,0.0017308,99720.0,99719.0,0.1983115]